Cogmind - Beta 15 @@@ ROGUE MODE // 2025.09.27 @ 17:32:42 // Winter2022/Polymind Player: Figgis Result: Self-destructed Performance ------------- Evolutions (4) 2000 Regions Visited (11) 2200 Robots Destroyed (58) 290 Value Destroyed (1891) 1891 Prototype IDs (5) 100 Alien Tech Used (0) 0 Bonus (3710) 3710 TOTAL SCORE: 10121 Bonus ------- Polymind Skill 3710 Cogmind --------- Core Integrity 819/850 Matter 0/0 Energy 24/25 System Corruption 0% Temperature Cool (2) Movement Hovering (80) Location -6/Factory Parts ------- > --- POWER (1) -------- (None) > --- PROPULSION (1) --- Combat Antigrav System > --- UTILITY (22) ----- Advanced Launcher Guidance Computer Improved Target Analyzer Experimental Core Analyzer Improved Armor Integrity Analyzer EX Chip 1 EX Chip 1 EX Chip 1 EX Chip 1 EX Chip 1 EX Chip 1 EX Chip 1 EX Chip 1 EX Chip 1 EX Chip 2 EX Chip 2 EX Chip 2 EX Chip 2 EX Chip 2 EX Chip 2 EX Chip 2 > --- WEAPON (2) ------- (None) > --- INVENTORY (2) ---- (None) Peak State ------------ > --- POWER ------------ Heavy Deuterium Engine > --- PROPULSION ------- Combat Antigrav System > --- UTILITY ---------- Advanced Launcher Guidance Computer Improved Target Analyzer Experimental Core Analyzer Improved Armor Integrity Analyzer EX Chip 1 EX Chip 1 EX Chip 1 EX Chip 1 EX Chip 1 EX Chip 1 EX Chip 1 EX Chip 1 EX Chip 1 EX Chip 1 EX Chip 2 EX Chip 2 EX Chip 2 EX Chip 2 EX Chip 2 EX Chip 2 EX Chip 2 EX Chip 2 > --- WEAPON ----------- AWS/EX-DEC > --- INVENTORY -------- Deploy-a-Sentry [Rating: 99] Favorites ----------- Power Heavy Deuterium Engine Engine Heavy Deuterium Engine Power Core Light Nuclear Core Propulsion Aluminum Leg Leg Aluminum Leg Hover Unit Combat Antigrav System Flight Unit Flight Unit Utility EX Chip 1 Device Improved Heat Sink Processor Advanced Launcher Guidance Computer Hackware EX Chip 1 Weapon AWS/EX-DEC Energy Gun AWS/EX-DEC Ballistic Gun Light Assault Rifle Build | -11 -10 -10 -9 -9 -9 -8 -8 -7 -7 -7 -6 ------- Run | Yrd Mat Min Mat Min Exi Min Mat Fac Low Low Fac Slots Evolved . | . . . . . . . . . . . . Power . | . . . . . . . . . . . . Propulsion . | . . . . . . . . . . . . Utility . | . . . . . . . . . . . . Weapon . | . . . . . . . . . . . . Parts Attached . | . . . . . . . . . . . . Power . | . . . . . . . . . . . . Engine . | . . . . . . . . . . . . Core . | . . . . . . . . . . . . Reactor . | . . . . . . . . . . . . Propulsion . | . . . . . . . . . . . . Treads . | . . . . . . . . . . . . Leg . | . . . . . . . . . . . . Wheel . | . . . . . . . . . . . . Hover . | . . . . . . . . . . . . Flight . | . . . . . . . . . . . . Utility . | . . . . . . . . . . . . Device . | . . . . . . . . . . . . Storage . | . . . . . . . . . . . . Processor . | . . . . . . . . . . . . Hackware . | . . . . . . . . . . . . Protection . | . . . . . . . . . . . . Artifact . | . . . . . . . . . . . . Weapon . | . . . . . . . . . . . . Energy Gun . | . . . . . . . . . . . . Energy Cannon . | . . . . . . . . . . . . Ballistic Gun . | . . . . . . . . . . . . Ballistic Cannon . | . . . . . . . . . . . . Launcher . | . . . . . . . . . . . . Special Weapon . | . . . . . . . . . . . . Impact Weapon . | . . . . . . . . . . . . Slashing Weapon . | . . . . . . . . . . . . Piercing Weapon . | . . . . . . . . . . . . Special Melee Weapon . | . . . . . . . . . . . . Unidentified Prototypes . | . . . . . . . . . . . . Parts Lost 6 | . 2 . . . . 2 . . . . 2 Power 1 | . . . . . . . . . . . 1 Propulsion 1 | . 1 . . . . . . . . . . Utility 2 | . . . . . . 2 . . . . . Weapon 2 | . 1 . . . . . . . . . 1 Highest Loss Streak 2 | . 2 . . . . 2 . . . . 2 To Critical Strikes . | . . . . . . . . . . . . Average Backups . | . . . . . . . . . . . . Power . | . . . . . . . . . . . . Propulsion . | . . . . . . . . . . . . Utility . | . . . . . . . . . . . . Weapon . | . . . . . . . . . . . . Tool/Special . | . . . . . . . . . . . . Unused Backups 1 | . . . . . 1 . . . . . . Power . | . . . . . . . . . . . . Propulsion . | . . . . . . . . . . . . Utility 1 | . . . . . 1 . . . . . . Weapon . | . . . . . . . . . . . . Tool/Special . | . . . . . . . . . . . . Average Slot Usage (%) 90 | . 97 100 100 100 28 92 88 88 88 88 87 Engine 2 | . 4 . . . . 3 3 3 3 3 2 Core 7 | . 15 20 20 20 . . . . . . . Leg 14 | . 31 40 40 40 . . . . . . . Hover 1 | . . . . . . 3 3 3 3 3 3 Flight 2 | . 8 . . . . . . . . . . Device 7 | . 15 20 20 20 . . . . . . . Processor 8 | . . . . . 4 15 15 15 15 15 15 Hackware 33 | . . . . . 20 65 61 61 61 61 61 Energy Gun 9 | . 15 20 20 20 . 3 3 3 3 3 3 Ballistic Gun 1 | . 4 . . . . . . . . . . Peak Build Rating 99 | . 10 10 10 10 99 99 95 95 95 95 95 Average Rating 56 | . 8 10 10 10 41 96 95 95 95 95 93 On Entrance 50 | . . 10 10 10 . 99 95 95 95 95 95 Naked Turns 65 | . 11 . . . 54 . . . . . . Heaviest Build 21 | . 9 9 9 9 21 21 21 21 21 21 21 Greatest Support 21 | 3 20 20 20 20 21 21 21 21 21 21 21 Greatest Overweight (x) . | . . . . . . . . . . . . Average Overweight (x) . | . . . . . . . . . . . . Largest Inventory Capacity 2 | . 1 1 1 1 2 2 2 2 2 2 2 Average Capacity 1 | . . 1 1 1 . 2 2 2 2 2 2 Most Carried 2 | . . . . . 2 1 1 1 1 1 . Average Carried . | . . . . . . 1 1 1 1 . . Final Capacity 2 | . 1 1 1 . 2 2 2 2 2 2 2 Final Carried 1 | . . . . . 1 1 1 1 1 . . Class Distribution -------------------- 55% | Assembler 37% | Grunt 4% | Swarmer Dominant Class ---------------- Grunt | -10/Materials Grunt | -10/Mines Grunt | -9/Materials Grunt | -9/Mines Cogmind | -9/Exiles Assembler | -8/Mines Assembler | -8/Materials Assembler | -7/Factory Assembler | -7/Lower Caves Assembler | -7/Lower Caves Assembler | -6/Factory Resources | -11 -10 -10 -9 -9 -9 -8 -8 -7 -7 -7 -6 ----------- Run | Yrd Mat Min Mat Min Exi Min Mat Fac Low Low Fac Matter Collected 13 | . 13 . . . . . . . . . . Remotely . | . . . . . . . . . . . . Salvage Created 2086 | . 432 . . . . 305 368 154 . 758 69 Parts 123 | . 23 . . . . 12 26 15 . 40 7 Haulers Intercepted . | . . . . . . . . . . . . Recyclers Shooed . | . . . . . . . . . . . . Parts Field Recycled . | . . . . . . . . . . . . Retrieved Matter . | . . . . . . . . . . . . Parts Self-Destructed 12 | . . . . . . . . . . 12 . Prevented 23 | . . . . . . . . . . 23 . Kills | -11 -10 -10 -9 -9 -9 -8 -8 -7 -7 -7 -6 ------- Run | Yrd Mat Min Mat Min Exi Min Mat Fac Low Low Fac Combat Hostiles Destroyed 48 | . 9 . . . . 6 10 4 . 15 4 Guns 40 | . 9 . . . . 3 10 3 . 11 4 AOE 2 | . . . . . . . . . . 2 . Classes Destroyed 13 | . 4 . . . . 1 2 2 . 4 . Worker 2 | . 2 . . . . . . . . . . Recycler 2 | . . . . . . 1 . 1 . . . Operator 2 | . . . . . . . 2 . . . . Watcher 4 | . 3 . . . . . 1 . . . . Swarmer 15 | . 2 . . . . . 7 . . 2 4 Grunt 19 | . 7 . . . . 6 1 1 . 4 . Brawler 3 | . . . . . . . . . . 3 . Duelist 3 | . . . . . . . . . . 3 . Protector 1 | . . . . . . . . . . 1 . Sentry 4 | . . . . . . . 2 1 . 1 . Hunter 1 | . . . . . . . . 1 . . . Programmer 1 | . . . . . . . . 1 . . . Master Thief 1 | . . . . . . . . . . 1 . Best Kill Streak 14 | . 4 . . . . 4 5 4 . 14 4 Combat Bots Only 14 | . 2 . . . . 3 4 3 . 14 4 Max Kills in Single Turn 2 | . 1 . . . . 2 1 1 . 2 1 Gunslinging . | . . . . . . . . . . . . Exploded 2 | . . . . . . . . . . 2 . Melee . | . . . . . . . . . . . . Uniques/NPCs Destroyed . | . . . . . . . . . . . . Combat | -11 -10 -10 -9 -9 -9 -8 -8 -7 -7 -7 -6 -------- Run | Yrd Mat Min Mat Min Exi Min Mat Fac Low Low Fac Hostile Shots Fired 153 | . 66 . . . . 19 21 22 . 11 14 Missed 64 | . 26 . . . . 7 10 9 . 5 7 Hits 89 | . 40 . . . . 12 11 13 . 6 7 Melee 1 | . . . . . . . . . . 1 . Projectile 88 | . 40 . . . . 12 11 13 . 5 7 Critical Strikes 1 | . . . . . . . . . . 1 . Damage Taken 1035 | . 451 . . . . 192 120 81 . 89 102 Core 212 | . 128 . . . . 31 9 1 . 12 31 Absorbed by Shields . | . . . . . . . . . . . . Ignored by Resistances 69 | . . . . . . . . 69 . . . Core Remaining (%) 87 | 100 . 48 . . . 92 98 . . 98 . Volleys Fired 58 | . 58 . . . . . . . . . . Largest 1 | . 1 . . . . . . . . . . Hottest 65 | . 65 . . . . . . . . . . Shots Fired 172 | . 58 . . . . 16 25 23 . 42 8 Gun 172 | . 58 . . . . 16 25 23 . 42 8 Cannon . | . . . . . . . . . . . . Launcher . | . . . . . . . . . . . . Special . | . . . . . . . . . . . . Kinetic 24 | . 24 . . . . . . . . . . Thermal 34 | . 34 . . . . . . . . . . Explosive . | . . . . . . . . . . . . Electromagnetic 114 | . . . . . . 16 25 23 . 42 8 Robot Hit Streak 32 | . 8 . . . . 21 32 25 . 26 7 Robot Miss Streak 3 | . 3 . . . . 2 3 2 . 3 2 Penetration Max . | . . . . . . . . . . . . Secondary Targets . | . . . . . . . . . . . . Autonomous 114 | . . . . . . 16 25 23 . 42 8 Shots Hit Robots 147 | . 38 . . . . 16 24 23 . 39 7 Core Hits 109 | . 20 . . . . 11 17 17 . 36 8 Critical Kills . | . . . . . . . . . . . . Critical Parts Destroyed . | . . . . . . . . . . . . Critical Strikes 10 | . . . . . . 2 . 2 . 3 3 Corrupt 10 | . . . . . . 2 . 2 . 3 3 Melee Attacks . | . . . . . . . . . . . . Impact . | . . . . . . . . . . . . Slashing . | . . . . . . . . . . . . Piercing . | . . . . . . . . . . . . Sneak Attacks . | . . . . . . . . . . . . Combat Hostiles . | . . . . . . . . . . . . Follow-up Attacks . | . . . . . . . . . . . . Damage Inflicted 3364 | . 467 . . . . 498 615 376 . 1230 178 Guns 3166 | . 467 . . . . 498 598 376 . 1049 178 Cannons . | . . . . . . . . . . . . Explosions 181 | . . . . . . . . . . 181 . Melee . | . . . . . . . . . . . . Ramming 17 | . . . . . . . 17 . . . . Kinetic 139 | . 139 . . . . . . . . . . Thermal 509 | . 328 . . . . . . . . 181 . Explosive . | . . . . . . . . . . . . Electromagnetic 2699 | . . . . . . 498 598 376 . 1049 178 Impact . | . . . . . . . . . . . . Slashing . | . . . . . . . . . . . . Piercing . | . . . . . . . . . . . . Highest Corruption . | . . . . . . . . . . . . Average Corruption . | . . . . . . . . . . . . Corruption Purged . | . . . . . . . . . . . . Corruption Blocked . | . . . . . . . . . . . . Overload Shots . | . . . . . . . . . . . . Overflow Damage . | . . . . . . . . . . . . Projectiles . | . . . . . . . . . . . . Explosions . | . . . . . . . . . . . . Melee . | . . . . . . . . . . . . Knockbacks . | . . . . . . . . . . . . Impact . | . . . . . . . . . . . . Kinetic . | . . . . . . . . . . . . Secondary . | . . . . . . . . . . . . Self-Inflicted Damage 17 | . . . . . . . 17 . . . . Shots . | . . . . . . . . . . . . Rammed . | . . . . . . . . . . . . Targets Rammed . | . . . . . . . . . . . . Kicked . | . . . . . . . . . . . . Crushed . | . . . . . . . . . . . . Highest Temperature 105 | . 105 . . . . 14 2 2 . 17 . Average Temperature 19 | . 24 . . . . 5 2 2 . 12 . Received Heat Transfer 414 | . 231 . . . . 108 18 12 . 45 . Siege Activations . | . . . . . . . . . . . . Martial Activations . | . . . . . . . . . . . . Shielding Activations . | . . . . . . . . . . . . Robots Disrupted . | . . . . . . . . . . . . Combat Hostiles . | . . . . . . . . . . . . Robots Corrupted 6 | . . . . . . 3 . 1 . 2 . Combat Hostiles 6 | . . . . . . 3 . 1 . 2 . Parts Fried 16 | . . . . . . 2 . 2 . 11 1 Impact Corruptions . | . . . . . . . . . . . . Robots Melted . | . . . . . . . . . . . . Combat Hostiles . | . . . . . . . . . . . . Parts Melted . | . . . . . . . . . . . . Heat Transferred 877 | . 777 . . . . . . . . 100 . Parts Sabotaged . | . . . . . . . . . . . . Parts Stolen 1 | . . . . . . . . . . 1 . Parts Stripped . | . . . . . . . . . . . . Power Chain Reactions 1 | . . . . . . . . . . 1 . Alert | -11 -10 -10 -9 -9 -9 -8 -8 -7 -7 -7 -6 ------- Run | Yrd Mat Min Mat Min Exi Min Mat Fac Low Low Fac Maximum Alert Level 1 | . . . . . . . 1 . . . . Low Security (%) 99 | 100 100 100 100 100 . 100 94 100 . . 100 Level 1 . | . . . . . . . 5 . . . . Level 2 . | . . . . . . . . . . . . Level 3 . | . . . . . . . . . . . . Level 4 . | . . . . . . . . . . . . Level 5 . | . . . . . . . . . . . . High Security . | . . . . . . . . . . . . Max Security . | . . . . . . . . . . . . Peak Influence 248 | . 101 6 . . . 95 248 78 . . 154 Initial 154 | . . 6 . . . . 25 53 . . 154 Average 39 | . 34 1 . . . 61 88 37 . . 64 Influence Increases 1359 | . 326 . . . . 145 363 115 45 275 90 Destroy 0b10 Robot/C 920 | . 180 . . . . 120 200 80 . 260 80 Destroy 0b10 Robot/NC 55 | . 25 . . . . 5 15 5 . 5 . Destroy Leader 158 | . 46 . . . . 20 42 30 . 10 10 Successful Hack 30 | . 30 . . . . . . . . . . Destroy Structure 1 | . . . . . . . 1 . . . . Lose Combat Pursuer 195 | . 45 . . . . . 105 . 45 . . Influence Decreases 1289 | . 308 18 . . . 80 310 225 53 30 265 Entered New Map 212 | . . 12 . . . . 40 65 4 . 91 Time Decay 686 | . 221 6 . . . 60 120 160 49 30 40 Lost Part 50 | . 20 . . . . 20 . . . . 10 Purge Threat 341 | . 67 . . . . . 150 . . . 124 Squads Dispatched 3 | . 1 . 1 . . . . . . 1 . Investigation 2 | . 1 . 1 . . . . . . . . Extermination . | . . . . . . . . . . . . Reinforcement . | . . . . . . . . . . . . Assault 1 | . . . . . . . . . . 1 . Garrison . | . . . . . . . . . . . . Intercept . | . . . . . . . . . . . . Searches Triggered . | . . . . . . . . . . . . Construction Impeded . | . . . . . . . . . . . . Haulers Reinforced . | . . . . . . . . . . . . Active Scanning Responses . | . . . . . . . . . . . . Cargo Convoy Interrupts . | . . . . . . . . . . . . Stealth | -11 -10 -10 -9 -9 -9 -8 -8 -7 -7 -7 -6 --------- Run | Yrd Mat Min Mat Min Exi Min Mat Fac Low Low Fac Distress Signals 1 | . 1 . . . . . . . . . . Communications Jammed . | . . . . . . . . . . . . Distress Signals . | . . . . . . . . . . . . Times Spotted 78 | . 21 . . . . 6 19 4 4 17 7 Peak Tracking Total 10 | . 5 . . . . 3 6 1 4 10 4 Tactical Retreats 7 | . 2 . . . . . 4 . 1 . . Traps | -11 -10 -10 -9 -9 -9 -8 -8 -7 -7 -7 -6 ------- Run | Yrd Mat Min Mat Min Exi Min Mat Fac Low Low Fac Traps Triggered 4 | . 1 . . . . . . 3 . . . Indirectly . | . . . . . . . . . . . . Trap Hack Attempts . | . . . . . . . . . . . . Triggered . | . . . . . . . . . . . . Disarmed . | . . . . . . . . . . . . Reprogrammed 4 | . . . . . . . . . . . 4 Reused . | . . . . . . . . . . . . Traps Extracted . | . . . . . . . . . . . . Installed . | . . . . . . . . . . . . Triggered . | . . . . . . . . . . . . Machines | -11 -10 -10 -9 -9 -9 -8 -8 -7 -7 -7 -6 ---------- Run | Yrd Mat Min Mat Min Exi Min Mat Fac Low Low Fac Machines Disabled 1 | . . . . . . . . . . 1 . Max in Single Turn 1 | . . . . . . . . . . 1 . Machines Repaired . | . . . . . . . . . . . . Machines Dismantled . | . . . . . . . . . . . . Machines Sabotaged . | . . . . . . . . . . . . Overloaded Fab Kills . | . . . . . . . . . . . . Hacking | -11 -10 -10 -9 -9 -9 -8 -8 -7 -7 -7 -6 --------- Run | Yrd Mat Min Mat Min Exi Min Mat Fac Low Low Fac Machines Accessed 16 | . 7 . 1 . 1 . 2 2 . . 3 Terminals 13 | . 7 . 1 . . . 2 1 . . 2 Fabricators . | . . . . . . . . . . . . Repair Stations . | . . . . . . . . . . . . Recycling Units . | . . . . . . . . . . . . Scanalyzers 2 | . . . . . . . . 1 . . 1 Garrison Access . | . . . . . . . . . . . . Total Hacks 112 | . 27 . 3 . 23 . 14 14 . . 31 Successful 84 | . 13 . . . 23 . 10 13 . . 25 Failed 27 | . 14 . 3 . . . 3 1 . . 6 Catastrophic 3 | . 3 . . . . . . . . . . Database Lockouts 1 | . . . . . . . 1 . . . . Manual 42 | . 11 . 3 . . . 12 2 . . 14 Terminals 87 | . 27 . 3 . . . 14 13 . . 30 Fabricators . | . . . . . . . . . . . . Repair Stations . | . . . . . . . . . . . . Recycling Units . | . . . . . . . . . . . . Scanalyzers 2 | . . . . . . . . 1 . . 1 Garrison Access . | . . . . . . . . . . . . Terminal Hacks 75 | . 7 . . . 23 . 10 12 . . 23 Record 30 | . 2 . . . 23 . . 3 . . 2 Part Schematic 6 | . . . . . . . . 3 . . 3 Robot Analysis 7 | . . . . . . . 2 . . . 5 Prototype ID Bank 1 | . . . . . . . 1 . . . . Level Access Points 3 | . . . . . . . 1 1 . . 1 Branch Access Points 4 | . . . . . . . 1 1 . . 2 Emergency Access Points 1 | . . . . . . . 1 . . . . Machine Index 3 | . . . . . . . 1 1 . . 1 Alert Level 1 | . . . . . . . . 1 . . . Unreport Threat 4 | . 1 . . . . . 1 . . . 2 Locate Traps 3 | . . . . . . . 1 . . . 2 Reprogram Traps 1 | . . . . . . . . . . . 1 Security Status 1 | . . . . . . . . . . . 1 Investigation Status 1 | . 1 . . . . . . . . . . Recall Investigation 1 | . . . . . . . . . . . 1 Hauler Manifests 1 | . 1 . . . . . . . . . . Registered Components 1 | . 1 . . . . . . . . . . Registered Prototypes 3 | . 1 . . . . . . 1 . . 1 Zone Layout 3 | . . . . . . . 1 1 . . 1 Fabricator Hacks . | . . . . . . . . . . . . Repair Station Hacks . | . . . . . . . . . . . . Recycling Unit Hacks . | . . . . . . . . . . . . Scanalyzer . | . . . . . . . . . . . . Garrison Access Hacks . | . . . . . . . . . . . . Unauthorized Hacks 9 | . 6 . . . . . . 1 . . 2 Terminals 7 | . 6 . . . . . . . . . 1 Botnet 7 | . 6 . . . . . . . . . 1 Fabricators . | . . . . . . . . . . . . Repair Stations . | . . . . . . . . . . . . Recycling Units . | . . . . . . . . . . . . Scanalyzers 2 | . . . . . . . . 1 . . 1 Researchers 2 | . . . . . . . . 1 . . 1 Garrison Access . | . . . . . . . . . . . . Data Cores Recovered 2 | . . . . . . . 2 . . . . Used 2 | . . . . . . . 2 . . . . Hacking Detections 9 | . 5 . 1 . . . 1 . . . 2 Full Trace Events 1 | . . . 1 . . . . . . . . Feedback Events . | . . . . . . . . . . . . Feedback Blocked . | . . . . . . . . . . . . Robot Schematics Acquired . | . . . . . . . . . . . . Robots Built . | . . . . . . . . . . . . Authchips . | . . . . . . . . . . . . Time . | . . . . . . . . . . . . Total Robot Build Rating . | . . . . . . . . . . . . Part Schematics Acquired 6 | . . . . . . . . 3 . . 3 Parts Built . | . . . . . . . . . . . . Authchips . | . . . . . . . . . . . . Time . | . . . . . . . . . . . . Total Part Build Rating . | . . . . . . . . . . . . Parts Repaired . | . . . . . . . . . . . . Time . | . . . . . . . . . . . . Parts Recycled . | . . . . . . . . . . . . Recycled Matter . | . . . . . . . . . . . . Retrieved Matter . | . . . . . . . . . . . . Retrieved Components . | . . . . . . . . . . . . Parts Scanalyzed . | . . . . . . . . . . . . Part Schematics Acquired . | . . . . . . . . . . . . Parts Damaged . | . . . . . . . . . . . . Bothacking | -11 -10 -10 -9 -9 -9 -8 -8 -7 -7 -7 -6 ------------ Run | Yrd Mat Min Mat Min Exi Min Mat Fac Low Low Fac Used RIF Installer . | . . . . . . . . . . . . Robots Hacked 2 | . 2 . . . . . . . . . . Non-combat . | . . . . . . . . . . . . Combat 2 | . 2 . . . . . . . . . . Robot Hacks Applied 2 | . 2 . . . . . . . . . . find_shortcuts 2 | . 2 . . . . . . . . . . Relay Couplers Released . | . . . . . . . . . . . . Fabnet Peak Effective % . | . . . . . . . . . . . . Robots Rewired . | . . . . . . . . . . . . Allies Hacked . | . . . . . . . . . . . . Hacks Repelled . | . . . . . . . . . . . . Allies | -11 -10 -10 -9 -9 -9 -8 -8 -7 -7 -7 -6 -------- Run | Yrd Mat Min Mat Min Exi Min Mat Fac Low Low Fac Total Allies 3 | . . . . 3 . . . . . . . Largest Group 3 | . . . . 3 2 . . . . . . Highest-Rated Group 86 | . . . . 86 62 . . . . . . Highest-Rated Ally 31 | . . . . 31 31 . . . . . . Total Orders . | . . . . . . . . . . . . Ally Attacks . | . . . . . . . . . . . . Total Damage . | . . . . . . . . . . . . Kills . | . . . . . . . . . . . . Allies Corrupted . | . . . . . . . . . . . . Allies Melted . | . . . . . . . . . . . . Intel | -11 -10 -10 -9 -9 -9 -8 -8 -7 -7 -7 -6 ------- Run | Yrd Mat Min Mat Min Exi Min Mat Fac Low Low Fac Active Infowar (turns) . | . . . . . . . . . . . . Robot Analysis Total 7 | . 2 . . . . . 1 . . . 4 Derelict Logs Recovered 2 | . . . . 2 . . . . . . . Drone Launches . | . . . . . . . . . . . . Drone Recoveries . | . . . . . . . . . . . . Exploration | -11 -10 -10 -9 -9 -9 -8 -8 -7 -7 -7 -6 ------------- Run | Yrd Mat Min Mat Min Exi Min Mat Fac Low Low Fac Turns Passed 2592 | 9 688 92 150 166 93 127 253 333 371 138 172 Spaces Moved 2723 | 18 612 52 101 130 155 105 309 395 464 171 211 Core 144 | 18 19 . . 1 106 . . . . . . Treads . | . . . . . . . . . . . . Legs 663 | . 381 52 101 129 . . . . . . . Wheels . | . . . . . . . . . . . . Hover 1704 | . . . . . 49 105 309 395 464 171 211 Flight 212 | . 212 . . . . . . . . . . Fastest Speed 37 | 50 37 120 120 50 50 80 80 80 80 80 80 Average Speed 84 | 50 89 120 120 119 59 80 80 80 80 80 80 Slowest Speed 120 | 50 120 120 120 120 80 80 80 80 80 80 80 Overloaded Moves . | . . . . . . . . . . . . Propulsion Burnouts . | . . . . . . . . . . . . Robots Hopped 1 | . 1 . . . . . . . . . . Potential Cave-ins . | . . . . . . . . . . . . Cave-ins Triggered . | . . . . . . . . . . . . Exploration Rate (%) 29 | 4 83 13 9 28 55 20 35 11 67 22 7 Regions Visited 11 Branch Regions 6 Pre-discovered Areas 1 | . . . . . 1 . . . . . . Known Exits Taken 3 | . . . . . . . 1 1 . 1 . Unknown Exits Taken 8 | 1 1 1 1 1 1 1 . . 1 . . Scrap Searched 1 | . . . . 1 . . . . . . . Spaces Dug . | . . . . . . . . . . . . Terrain Destroyed 5 | . . . . . . . . . . 5 . Melee . | . . . . . . . . . . . . Projectile . | . . . . . . . . . . . . AOE 5 | . . . . . . . . . . 5 . Terrain Rammed 1 | . . . . . . . 1 . . . . Walls Destroyed 1 | . . . . . . . 1 . . . . Machines Disabled . | . . . . . . . . . . . . Actions | -11 -10 -10 -9 -9 -9 -8 -8 -7 -7 -7 -6 --------- Run | Yrd Mat Min Mat Min Exi Min Mat Fac Low Low Fac Total 2944 | 17 700 81 130 140 156 147 314 411 463 171 214 Wait 172 | . 32 30 30 11 . 43 5 17 . 1 3 Move 2710 | 17 609 51 100 129 154 104 308 394 463 170 211 Hop 1 | . 1 . . . . . . . . . . Pick Up 1 | . . . . . 1 . . . . . . Fast Attach . | . . . . . . . . . . . . Attach . | . . . . . . . . . . . . Detach . | . . . . . . . . . . . . Swap . | . . . . . . . . . . . . Drop 1 | . . . . . 1 . . . . . . Fire 58 | . 58 . . . . . . . . . . Melee . | . . . . . . . . . . . . Ram 1 | . . . . . . . 1 . . . . Kick . | . . . . . . . . . . . . Crush . | . . . . . . . . . . . . Escape Stasis . | . . . . . . . . . . . . Rewire . | . . . . . . . . . . . . Trap . | . . . . . . . . . . . . Miscellaneous . | . . . . . . . . . . . . Route ------- -11/Scrapyard -10/Materials (discovered 4 exits: *Mat x3 / [*Min]) -10/Mines -9/Materials (discovered 2 exits: [*Min] / [*Sto]) -9/Mines -9/Exiles -8/Mines -8/Materials (discovered 3 exits: *Fac x3) -7/Factory (discovered 6 exits: Fac x4 / *Low x2) -7/Lower Caves -7/Lower Caves -6/Factory (discovered 6 exits: Fac x4 / Low x2) History --------- Turn | Location | Event 5 | -11/Scrapyard | Discovered new exit (range 12) 10 | -11/Scrapyard | Entered Materials 77 | -10/Materials | Discovered new exit (range 4) 119 | -10/Materials | Discovered new exit (range 7) 227 | -10/Materials | Discovered new exit (range 13) 497 | -10/Materials | Discovered new exit (range 13) 626 | -10/Materials | Core integrity fell below 50% 698 | -10/Materials | Entered Mines 702 | -10/Mines | Joined a pair of Derelicts in attacking an 0b10 outpost 775 | -10/Mines | Discovered new exit (range 13) 790 | -10/Mines | Entered Materials 930 | -9/Materials | Discovered new exit (range 16) 936 | -9/Materials | Discovered new exit (range 5) 940 | -9/Materials | Entered Mines 994 | -9/Mines | Met a Derelict bent on vengeance 994 | -9/Mines | Learned Materials emergency access door positions 1017 | -9/Mines | Learned Materials security intel 1068 | -9/Mines | Received a Mining Laser from a helpful Derelict 1090 | -9/Mines | Deemed a non-threat by the Exiles lab entrance 1090 | -9/Mines | Discovered new exit (range 5) 1106 | -9/Mines | Entered Exiles 1106 | -9/Exiles | Accompanied by 2 allies 1119 | -9/Exiles | Met 8R-AWN 1127 | -9/Exiles | Met EX-HEX 1136 | -9/Exiles | Led the pair of lost Derelicts to a safe place 1142 | -9/Exiles | Met EX-BIN 1149 | -9/Exiles | Met EX-DEC 1151 | -9/Exiles | Learned location of Zion (-7) 1160 | -9/Exiles | Took control of EX-DEC (ally) 1190 | -9/Exiles | Discovered new exit (range 12) 1199 | -9/Exiles | Left Exiles lab with Deploy-a-Sentry 1199 | -9/Exiles | Entered Mines 1315 | -8/Mines | Discovered new exit (range 15) 1326 | -8/Mines | Entered Materials 1401 | -8/Materials | Central database locked down 1474 | -8/Materials | Discovered new exit (range 12) 1528 | -8/Materials | Identified exit to Factory 1579 | -8/Materials | Entered Factory 1729 | -7/Factory | Discovered new exit (range 7) 1785 | -7/Factory | Identified exit to Factory 1785 | -7/Factory | Identified exit to Lower Caves 1912 | -7/Factory | Entered Lower Caves 2277 | -7/Lower Caves | Discovered new exit (range 9) 2283 | -7/Lower Caves | Entered another Lower Caves area 2283 | -7/Lower Caves | Spotted M5-Q5O(f) 2283 | -7/Lower Caves | Spotted K1-FWU(f) 2284 | -7/Lower Caves | Deploy-a-Sentry stolen by Master Thief 2285 | -7/Lower Caves | Encountered a Master Thief 2285 | -7/Lower Caves | Encountered a Master Thief 2290 | -7/Lower Caves | Destroyed M5-Q5O(f) 2332 | -7/Lower Caves | Discovered exit to Factory (range 11) 2356 | -7/Lower Caves | Attracted the attention of an 0b10 outpost 2421 | -7/Lower Caves | Entered Factory 2423 | -6/Factory | Destroyed 14 combat bots 2486 | -6/Factory | Identified exit to Lower Caves 2581 | -6/Factory | Identified exit to Factory 2593 | -6/Factory | Self-destructed Last Messages --------------- Establishing remote squad link... No tasked investigation squads found. >>Inventory(Prototypes) Retrieving prototype inventory records... Found 4 registered prototype stockpiles: PQUINM7Z0Z: Prc. Grenade Launcher 94YSJNR03V: Biomechanical Wings OP94KAGRV9: Hvy. Deuterium Engine 6VFRWS92TF: Cld. Aerolev Unit Downloaded coordinate data. >>Layout(Zone) Retrieving Zone 2V layout... Downloaded map data. >>Enumerate(Guards) Retrieving latest reported positions... Security request, restricting to local area... No active security squads found. 02582_ R-10 Processor collects Lgt. Nuclear Core. 02586_ R-10 Processor collects Corrupted Lgt. Nuclear Core. 02590_ AWS/EX-DEC destroyed. Map ----- +----------------------------------------------------+ | ?????????????????????????????????????? | | ?????????????????????????????????????? | | ?????????????????????????????????????? | | ?????????????????????????????????????? | | ?????????????????????????????????????? | | ?????????????????????????????????????? | | ???????????##????????????????????????? | | ??????????? ????????????????????????? | | ??????????? ????????????????????????? | | ??????????? ????????????????????????? | | ??????#?### ????????????????????????? | | ?????? ^^^^^????????????????????? | | ??? ?? ????????????????????????? | | ??# " " " ###+##???????????????????? | | ??# " " " ## ???????????????????? | | ??# " " " ## """???????????????????? | | ??# " " " s # """???????????????????? | | ??# " " "s + """???????????????????? | | ??# " " " s # ???????????????????? | | ??# " " " # ???????????????????? | | ??# " " " # "T"???????????????????? | | ??# " " " # """???????????????????? | | ??# # ???????????????????? | | ??# " " ##+##???????????????????? | | ?## " " # #????????????????????? | | ?#" " " c# #????????????????????? | | ?#" " " # #????????????????????? | | ?#" " " %# #????????????????????? | | ?#T " " # ##?#?????????????????? | | ?#" " " % # ??????????????????? | | ?#"=[ " " # #???????????????????? | | ?#"=[ " " # #???????????????????? | | ?## * R #???????????????????? | | ??# #???????????????????? | | ??# #???????????????????? | | ??#######+#### #???????????????????? | | ????# ! # #???????????????????? | | ????# """# ?^^???????????????? | | ????# """# ^^???????????????? | | ????# """# ^^ ??????????????? | | ????# ######### ?????????????? | | ????# """#????????? ?????????????? | | ????# """#???????????????????????? | | ????# """#???????????????????????? | | ????# #???????????????????????? | | ????###+######???????????????????????? | | ??????# #????????????????????????????? | | ??????# #????????????????????????????? | | ??????# #????????????????????????????? | | ??????# #????????????????????????????? | +----------------------------------------------------+ Best States ------------- Heat Dissipation 43 Energy Generation 23 Energy Capacity 235 Matter Stores 100 Matter Capacity 100 Sight Range 16 Terrain Scan Density 10 Resistance: EM 90 Evasion (%) 62 Launcher Accuracy 40 Target Analysis 6 Core Analysis 8 Armor Integrity Analysis 40 Offensive Hacking 70 Defensive Hacking 56 Item Schematics ----------------- Energy Filter | -7/Factory | Hacked Force Field | -7/Factory | Hacked Power Amplifier | -7/Factory | Hacked Disruptor Cannon | -6/Factory | Hacked Imp. Coolant Injector | -6/Factory | Hacked Launcher Loader | -6/Factory | Hacked Robot Schematics ------------------ None Fabricated ------------ Nothing Repaired ---------- Nothing Alien Tech Used ----------------- None Achievements -------------- None Challenges ------------ None Polymind | -11 -10 -10 -9 -9 -9 -8 -8 -7 -7 -7 -6 ---------- Run | Yrd Mat Min Mat Min Exi Min Mat Fac Low Low Fac Hosts 3 | . 2 . . . 1 . . . . . . Combat Hostiles 2 | . 2 . . . . . . . . . . Allies 1 | . . . . . 1 . . . . . . Unique Host Classes 3 | . 2 . . . 1 . . . . . . Average Host Suspicion 61 | . 100 43 27 27 . 99 89 77 . 46 45 Unsuspicious Activity 86 | . . . . . 16 . . . . 70 . Returns to Shadow . | . . . . . . . . . . . . Fuzzy Dispatches . | . . . . . . . . . . . . Protomatter Created 451 | . 45 21 . . . 76 19 75 23 169 23 Used 69 | . 36 . . . 33 . . . . . . Decayed 71 | . . . . . . 37 . . 23 11 . Highest Spend 33 | . 30 . . . 33 . . . . . . Top 5 Hosts by Kills: EX-DEC (-9/Exiles: 39) G-47 Trooper (-10/Materials: 6) S-10 Pest (-10/Materials: 3) Game ------ Seed SkeletonGravitonReactor Manual? 0 Play Time 00:25:45 Cumulative 188.3 hours Start 2025.09.27 @ 17:09:13 End 2025.09.27 @ 17:32:42 Sessions 1 Manual Loads 0 Difficulty Rogue Special Mode Winter2022/Polymind Game No. 297 Rogue 294 Adventurer 3 Explorer 0 Win Type - Total 1 Types 1/0/0/0/0/0/0/0/0/0 Lore% 64 Gallery% 59 Achievement% 47 Wizard Run 0 Options --------- Layout 0 ASCII 0 Keyboard 0 Movement Mouse Keybinds 0 Fullscreen 2 Font 18/SmallcapsGlow Map View 76x50 Zoom Use 0% Tactical HUD 1 Map Filters NONE Filters NONE Steam 1 RUN: 4b7ddd75-3b43-4598-828b-1bcc831767b1